{"text_format":"2","workbook":"xlsx","n_sheets":5,"sheets":["ENG","KOR","개인정보동의서","총괄(국문)","총괄(영문)"],"not_rendered":{"charts":0,"images":0,"macros":0,"external_links":0,"defined_names":2,"comments":0,"pivot_tables":0},"unopened":[],"bounds":{"document_bytes":16777216,"sheet_cells":100000,"run_cost":"one","rows_first":2000,"rows_last":500,"rows_between":2000,"halvings":0,"cell_chars":16384,"cell_head_chars":4096},"cells_cut":0,"cells_raw":0,"read":"whole","date_system":"1900"}

{"sheet":"ENG","index":0,"n_rows":54,"n_cols":12,"rows_kept":54,"cut":false,"hidden":false,"merged":[[24,2,24,3],[24,4,24,5],[24,7,24,8],[26,2,26,8],[25,2,25,8],[42,2,42,11],[43,2,43,11],[44,2,44,11],[45,2,45,11],[38,2,38,11],[39,2,39,11],[40,2,40,11],[41,2,41,11],[53,2,53,6],[53,7,53,11],[46,2,46,11],[47,2,47,11],[48,2,48,11],[49,2,49,11],[50,2,50,11],[51,2,51,11],[52,2,52,11],[2,2,2,8],[2,9,2,11],[3,2,4,8],[3,9,4,11],[5,2,5,8],[5,9,5,11],[7,10,7,11],[8,10,8,11],[9,10,9,11],[10,10,10,11],[6,2,7,8],[8,2,8,8],[9,2,10,8],[11,2,11,8],[11,9,11,11],[12,7,12,8],[17,2,17,8],[18,2,18,3],[18,4,18,5],[18,7,18,8],[17,9,17,11],[18,9,18,11],[13,7,13,8],[14,7,14,8],[12,10,12,11],[15,2,16,8],[15,10,15,11],[16,10,16,11],[13,10,13,11],[19,2,19,3],[19,7,19,8],[20,2,20,3],[20,4,20,5],[20,9,20,11],[36,2,36,11],[37,2,37,11],[33,9,33,11],[21,2,21,3],[21,4,21,5],[21,7,22,8],[22,2,22,3],[22,4,22,5],[35,2,35,11],[23,2,23,8],[25,9,25,11],[27,2,34,3],[27,4,27,8],[28,4,30,8],[31,4,31,8],[34,9,34,11],[14,10,14,11],[19,9,19,11],[21,9,21,11],[32,4,34,8],[31,9,32,11],[27,9,29,11],[30,9,30,11],[24,9,24,11],[23,9,23,11],[26,9,26,11],[22,9,22,11],[20,7,20,8],[19,4,19,5]]}
[]
[]
[null,null,"COMPANY PROFILE",{"$nulls":6},"TechCrunch Disrupt SF 2022"]
[null,null,"Company name",{"$nulls":6},"Company Logo"]
[]
[null,null,"About our Company",{"$nulls":6},"Contact Information"]
[null,null,"Please limit responses to 1 ~ 2 centence",{"$nulls":6},"Contact Person","First Name","Last Name"]
[{"$nulls":9},"Title"]
[null,null,"About Your Main Product",{"$nulls":6},"Contact Number "," +82- "]
[null,null,"Please limit responses to 1 ~ 2 centence",{"$nulls":6},"Fax"]
[{"$nulls":9},"Email","@"]
[null,null,"Team Members\n(Please list the Founders and Co-Founders, and/or Key Partners and their contact information) ",{"$nulls":6},"Company Information"]
[null,null,"Name/Position",null,"Contact"," +82-","E-mail","@",null,"Country of Company"]
[{"$nulls":9},"Established in "]
[{"$nulls":9},"Business Registration Number"]
[null,null,"CEO Background",{"$nulls":6},"Number of Employee"]
[{"$nulls":9},"Website"]
[null,null,"Business Category  (Select Your Business Category (up to THREE))",{"$nulls":6},"Business Model  & Investment"]
[null,null,"  Ads / Media",null,"  Energy / Material",null,"  IoT","  VR / AR",null," Revenue in Year 2021 (In US$)"]
[null,null,"  AI",null,"  Finance and Commerce",null,"  Lifestyle","  Web / Mobile",null,"USD 0.00"]
[null,null,"  Beauty / Cosmetic",null,"  Game / Entertainment",null,"  Machinery","  Others",null,"Growth Rate in Year 2021"]
[null,null,"  Big Data and Cloud",null,"  Green / Bio Tech ",null,"  Robotics","In case of Others:",null,"(Montly/YOY Growth Rate)"]
[null,null,"  Education",null,"  Healthcare",null,"  Security",null,null,"Funding Received so far (In US$)"]
[null,null,"Multiple choice (Select all that applies)",{"$nulls":6},"USD 0.00"]
[null,null,"B2C",null,"B2D",null,"B2B","B2B2C",null,"Funding Needed/Wanted (In US$)"]
[null,null,"Product / Service Description",{"$nulls":6},"USD 0.00"]
[null,null,"<Product / Service : Title (In one sentence)>    ex) <Globee : Mascot of KOTRA>",{"$nulls":6},"    Monthly Burn Rate/Runway (In US$)"]
[{"$nulls":4},"① Product(Service) Introduction / Solution",{"$nulls":4},"    How much cash you burn each month to maintain operations/How long before you need the next injection of cash. Specify COGS (manufacturing only)"]
[{"$nulls":4}," - Please write the information consisely and clearly, using exact words.\n - LENGTH : In 75 ~ 100 words"]
[]
[{"$nulls":9},"    IP Status"]
[{"$nulls":4},"② Product(Serivce) Advantages / Differentiators / Innovation",{"$nulls":4},"Applied, Pending, Approved.\nAlso the country/countries that patent was applied/approved in\nIf you have no patents then type N/A"]
[{"$nulls":4}," - Please write the information consisely and clearly, using exact words.\n - LENGTH : In 75 ~ 100 words"]
[{"$nulls":9},"Company Valuation (In US$)"]
[{"$nulls":9},"USD 0.00"]
[null,null,"   About Your Business"]
[null,null,"Problem : What problem in the market are you addressing?"]
[null,null,"Please provide evidence"]
[null,null,"What solution does your company provide to this problem?"]
[null,null,"Please limit responses to 100 words or less"]
[null,null,"Who are your competitors, and what differentiates you from them?"]
[null,null,"Competitor/Differentiating Factor, etc."]
[null,null,"Business Model"]
[null,null,"How does your company make money? \nPlease limit responses to 100 words or less"]
[null,null,"Market Potential"]
[null,null,"Describe the size and condition of the market.\nPlease limit responses to 100 words or less"]
[null,null,"Market Traction"]
[null,null,"(contracts, customers, status…)"]
[null,null,"Exit"]
[null,null,"List Potential buyers/partners/acquirers of your company in the future"]
[null,null,"Additional Information"]
[null,null,"Pitch Deck\nPlease attach a pitchdeck"]
[null,null,"Please provide a link to any additional materials\ne.g. Video Demos, Customer Testiminials, Press Coverage, etc."]
[null,null,"Date of Application  ",{"$nulls":4},"(mm/dd/yyyy)  "]

{"sheet":"KOR","index":1,"n_rows":56,"n_cols":14,"rows_kept":56,"cut":false,"hidden":false,"merged":[[53,2,53,11],[45,2,45,11],[50,2,50,11],[23,9,23,11],[24,9,24,11],[23,2,23,8],[55,2,55,6],[55,7,55,11],[54,2,54,11],[40,2,40,11],[41,2,41,11],[42,2,42,11],[43,2,43,11],[44,2,44,11],[46,2,46,11],[47,2,47,11],[48,2,48,11],[49,2,49,11],[52,2,52,11],[39,2,39,11],[27,2,34,3],[27,4,27,8],[28,4,30,8],[33,9,33,11],[37,2,37,11],[38,2,38,11],[35,2,35,11],[36,2,36,11],[21,9,21,11],[22,2,22,3],[22,4,22,5],[22,9,22,11],[20,7,20,8],[20,9,20,11],[21,2,21,3],[21,4,21,5],[21,7,22,8],[12,10,12,11],[17,9,17,11],[13,7,13,8],[17,2,17,8],[19,7,19,8],[18,9,18,11],[19,9,19,11],[14,7,14,8],[18,2,18,3],[18,4,18,5],[18,7,18,8],[19,2,19,3],[19,4,19,5],[2,2,2,8],[2,9,2,11],[3,2,4,8],[3,9,4,11],[5,2,5,8],[5,9,5,11],[26,9,26,11],[27,9,29,11],[25,9,25,11],[6,2,7,8],[8,2,8,8],[9,2,10,8],[6,10,6,11],[7,10,7,11],[8,10,8,11],[9,10,9,11],[10,10,10,11],[20,2,20,3],[20,4,20,5],[11,2,11,8],[11,9,11,11],[12,7,12,8],[51,2,51,11],[15,2,16,8],[15,10,15,11],[16,10,16,11],[13,10,13,11],[14,10,14,11],[31,4,31,8],[32,4,34,8],[34,9,34,11],[24,2,24,3],[24,4,24,5],[24,7,24,8],[25,2,25,8],[26,2,26,8],[31,9,32,11],[30,9,30,11]]}
[]
[]
[null,null,"COMPANY PROFILE",{"$nulls":6},"테크크런치 디스럽트 SF 2022"]
[null,null,"기업명(영문)",{"$nulls":6},"회사로고 이미지 삽입"]
[]
[null,null,"기업 소개",{"$nulls":6},"담당자 정보"]
[null,null,"간략히 작성",{"$nulls":6},"담당자 성명"]
[{"$nulls":9},"직급"]
[null,null,"주요 제품(서비스)",{"$nulls":6},"전화"," +82- "]
[null,null,"간단히 작성(1~2줄)",{"$nulls":6},"팩스"]
[{"$nulls":9},"이메일","@"]
[null,null,"주요 팀원 정보\n(설립자, 공동설립자. 주요파트너 등) ",{"$nulls":6},"기업 정보"]
[null,null,"성함 /직위",null,"연락처"," +82-","이메일","@",null,"소재지(국가)"]
[{"$nulls":9},"설립년월"]
[{"$nulls":9},"사업자등록번호"]
[null,null,"팀 소개 상술",{"$nulls":6},"임직원수"]
[{"$nulls":9},"홈페이지"]
[null,null,"사업 카테고리",{"$nulls":6},"상세 정보"]
[null,null,"  Ads / Media",null,"  Energy / Material",null,"  IoT","  VR / AR",null,"2021년도 매출액 (원)"]
[null,null,"  AI",null,"  Finance and Commerce",null,"  Lifestyle","  Web / Mobile"]
[null,null,"  Beauty / Cosmetic",null,"  Game / Entertainment",null,"  Machinery","  Others",null,"2021년도 성장률"]
[null,null,"  Big Data and Cloud",null,"  Green / Bio Tech ",null,"  Robotics","기타 선택한 경우 상술"]
[null,null,"  Education",null,"  Healthcare",null,"  Security",null,null,"현재까지 투자 유치 금액 (원/US$ 중 택)"]
[null,null,"사업 유형 (해당사항 복수선택)"]
[null,null,"B2C",null,"B2D",null,"B2B","B2B2C",null,"희망 투자액"]
[null,null,"제품/서비스 소개",{"$nulls":6},"USD 0.00"]
[null,null,"<제품/서비스명  : 한 줄 소개>\n예시) <글로비 : KOTRA를 대표하는 캐릭터로 전세계를 순간이동하는 기능을 보유>",{"$nulls":6},"월별 경비 지출 속도 (공개 가능 시)"]
[{"$nulls":4},"① 주요 기능",{"$nulls":4},"기업 운영을 위해 매월 소비하는 경비는? 다음 지출을 위해 어느정도 사전에 경비 조달을 하는가? (제조업의 경우 매출원가 상술)"]
[{"$nulls":4}," - 개조식으로 작성\n - 200자 이내 분량"]
[]
[{"$nulls":9},"지적재산권 현황 (IP Status)",null,null,null," "]
[{"$nulls":4},"② 제품의 장점/차별성 및 혁신기술",{"$nulls":4},"지원/검토,보류중(Pending)/승인완료\n특허 보유/지원 국가별로 서술\n특허 보유 사항이 없다면 해당 무로 작성"]
[{"$nulls":4}," - 개조식으로 작성\n - 200자 이내 분량"]
[{"$nulls":9},"기업가치 (원/US$ 중 택)"]
[]
[null,null,"사업 모델 등 상세"]
[null,null,"문제점(시장 현황) : What problem in the market are you addressing?"]
[]
[null,null,"해결책 (귀사의 제품/서비스가 어떻게 이 문제를 해결하고 있는지?)"]
[]
[null,null,"경쟁사, 경쟁사와의 차별점"]
[null,null,"Competitor/Differentiating Factor, etc."]
[null,null,"비즈니스 모델"]
[null,null,"How does your company make money? \nPlease limit responses to 100 words or less"]
[null,null,"시장 잠재력, 가능성"]
[null,null,"Describe the size and condition of the market.\nPlease limit responses to 100 words or less"]
[null,null,"성과 (계약, 고객 등 현황/혹은 예정사항 등)"]
[null,null,"(contracts, customers, status…)"]
[null,null,"출구 전략이 있다면?"]
[null,null,"List Potential buyers/partners/acquirers of your company in the future)"]
[null,null,"해외 전시회 참가 이력"]
[]
[null,null,"추가 요청사항"]
[null,null,"첨부파일 : 피칭덱 (추가파일로 피칭덱 첨부 바랍니다.)"]
[null,null,"참고 될만한 추가적인 자재 또는 링크 첨부 바랍니다.\n(예) 비디오 데모, 고객 후기, 언론 보도 등"]
[null,null,"신청 일자",{"$nulls":4},"(mm/dd/yyyy)  "]

{"sheet":"개인정보동의서","index":2,"n_rows":36,"n_cols":2,"rows_kept":36,"cut":false,"hidden":false,"merged":[]}
[]
[null,"기업 및 개인정보 이용 동의서"]
[]
[null,"  KOTRA는 『테크크런치 디스럽트 샌프란시스코 2022 한국관』사업 추진을 위해 아래와 같이 귀하의 정보를 수집 및 이용하고자 합니다. 기재사항은 사실에 근거하며, 선정 이후라도 허위사실로 판명 되었을 시에는 업체 선정 취소처분에도 이의를 제기하지 않을 것임을 밝힙니다. 제출된 서류는 일체 반납되지 않습니다."]
[null,"■ 기업 정보 수집∙활용∙제공∙조회 동의"]
[null,"◦ 기업 정보 수집 및 이용 목적 : 테크크런치 디스럽트 샌프란시스코 2019 한국관 및 연계 행사 참가 지원 등"]
[null,"◦ 수집하는 기업정보의 항목 : 기업 재무정보, 사업계획안, 제품 및 기술 설명서 등"]
[]
[null,"■ 개인정보 수집∙활용∙제공∙조회 동의"]
[null,"◦ 기업 정보 수집 및 이용 목적 : 테크크런치 디스럽트 샌프란시스코 2019 한국관 및 연계 행사 참가 지원 등"]
[null,"◦ 수집하는 개인정보의 항목 : 성명, 부서, 직함, 연락처, 이메일, 팩스 등"]
[]
[null,"■ 제3자 및 투자유치 협업기관들에게 기업 및 개인 정보 제공에 대한 동의"]
[null,"◦ KOTRA에 제출된 기업 및 개인 정보 그리고 사업 참여를 통해 작성되는 자료는 동 사업을 위해 "]
[null,"제3자(잠재투자가) 또는 투자유치 협업기관들에게 제공될 수 있습니다. "]
[]
[null,"◦ 개인정보의 보유 및 이용기간 : 사업참가 선정 이후 사업 종료기간 2년 경과 후 1년"]
[null," - 단, 사후 고객 관리, 차기 사업 안내, 맞춤형 KOTRA 서비스 안내 등을 위한 경우 별도 보관 "]
[]
[null,"◦ 개인정보 수집 및 이용에 동의하지 않으실 수 있습니다. 다만, KOTRA가 수집하는 정보는『테크크런치 디스럽트 샌프란시스코 2019 한국관 및 연계 행사 참가』를 위해 반드시 필요한 항목인 바, 동의하지 않으실 경우 사업 참가가 불가함을 양지하여 주시기 바랍니다."]
[]
[null,"◦ 개인정보보호를 위한 위 내용을 확인하였으며, 이에 동의하십니까? "]
[]
[null,"■ 동의함 □ 동의안함"]
[]
[null,"테크크런치 디스럽트 샌프란시스코 2019 한국관 및 기타 스타트업 해외 진출 지원 사업 목적으로 제3자에게 귀하의 정보를 제공할 수 있음을 확인하였으며, 이에 동의하십니까?       "]
[null,"■ 동의함 □ 동의안함"]
[]
[null,"                                                 회사명  "]
[null,"              대표자                    (인)"]
[null,"담당자                    (인) "]
[]
[]
[null,"2022 년     월    일"]
[]
[null,"KOTRA 사장 귀하"]

{"sheet":"총괄(국문)","index":3,"n_rows":4,"n_cols":26,"rows_kept":4,"cut":false,"hidden":true,"merged":[[1,23,1,25],[1,1,2,1],[1,2,1,11],[1,12,1,14],[1,15,1,17],[1,18,1,22]]}
[]
[null,"No.","General Information",{"$nulls":9},"CEO Information",null,null,"Business Information",null,null,"Business Model",{"$nulls":4},"Investment & Partnership Information"]
[null,null,"회사명","Company Name","Business\nCategory","Year\nEstablished","No. of\nEmployee","Company\nAddress","Website","Business Registration No.","Contact No.\n(Contact Person)","E-Mail","Name","Contact No.","E-Mail","Company Introduction","Product/Item 1","Product/Item 2","Year 2016 Turnover","Export Record (O, X)","Amount of Export in Year 2016","Target Market Nation and Size","Type and Size of Client"," Type of Partnership Considered","Earned Invenstment(US$)","Desired Amount of\nInvestment(US$)"]
[null,1,{"$f":"#REF!","v":{"$error":"#REF!"}},{"$f":"#REF!","v":{"$error":"#REF!"}},null,{"$f":"#REF!","v":{"$error":"#REF!"}},{"$f":"#REF!","v":{"$error":"#REF!"}},{"$f":"#REF!","v":{"$error":"#REF!"}},{"$f":"#REF!","v":{"$error":"#REF!"}},{"$f":"#REF!","v":{"$error":"#REF!"}},{"$f":"#REF!&\"(\"&#REF!&\" \"&#REF!&\")\"","v":{"$error":"#REF!"}},{"$f":"#REF!","v":{"$error":"#REF!"}},{"$f":"#REF!","v":{"$error":"#REF!"}},{"$f":"#REF!","v":{"$error":"#REF!"}},{"$f":"#REF!","v":{"$error":"#REF!"}},{"$f":"#REF!","v":{"$error":"#REF!"}},{"$f":"#REF!\n&#REF!","v":{"$error":"#REF!"}},{"$f":"#REF!\n&#REF!","v":{"$error":"#REF!"}},{"$f":"#REF!","v":{"$error":"#REF!"}},{"$f":"#REF!","v":{"$error":"#REF!"}},{"$f":"#REF!","v":{"$error":"#REF!"}},{"$f":"#REF!","v":{"$error":"#REF!"}},{"$f":"#REF!","v":{"$error":"#REF!"}},{"$f":"#REF!","v":{"$error":"#REF!"}},{"$f":"#REF!","v":{"$error":"#REF!"}},{"$f":"#REF!","v":{"$error":"#REF!"}}]

{"sheet":"총괄(영문)","index":4,"n_rows":4,"n_cols":26,"rows_kept":4,"cut":false,"hidden":true,"merged":[[1,23,1,25],[1,1,2,1],[1,2,1,11],[1,12,1,14],[1,15,1,17],[1,18,1,22]]}
[]
[null,"No.","General Information",{"$nulls":9},"CEO Information",null,null,"Business Information",null,null,"Business Model",{"$nulls":4},"Investment & Partnership Information"]
[null,null,"회사명","Company Name","Business\nCategory","Year\nEstablished","No. of\nEmployee","Company\nAddress","Website","Business Registration No.","Contact No.\n(Contact Person)","E-Mail","Name","Contact No.","E-Mail","Company Introduction","Product/Item 1","Product/Item 2","Year 2016 Turnover","Export Record (O, X)","Amount of Export in Year 2016","Target Market Nation and Size","Type and Size of Client"," Type of Partnership Considered","Earned Invenstment(US$)","Desired Amount of\nInvestment(US$)"]
[null,1,{"$f":"#REF!","v":{"$error":"#REF!"}},{"$f":"#REF!","v":{"$error":"#REF!"}},null,{"$f":"#REF!","v":{"$error":"#REF!"}},{"$f":"#REF!","v":{"$error":"#REF!"}},{"$f":"#REF!","v":{"$error":"#REF!"}},{"$f":"#REF!","v":{"$error":"#REF!"}},{"$f":"#REF!","v":{"$error":"#REF!"}},{"$f":"#REF!&\"(\"&#REF!&\" \"&#REF!&\")\"","v":{"$error":"#REF!"}},{"$f":"#REF!","v":{"$error":"#REF!"}},{"$f":"#REF!","v":{"$error":"#REF!"}},{"$f":"#REF!","v":{"$error":"#REF!"}},{"$f":"#REF!","v":{"$error":"#REF!"}},{"$f":"#REF!","v":{"$error":"#REF!"}},{"$f":"#REF!\n&#REF!","v":{"$error":"#REF!"}},{"$f":"#REF!\n&#REF!","v":{"$error":"#REF!"}},{"$f":"#REF!","v":{"$error":"#REF!"}},{"$f":"#REF!","v":{"$error":"#REF!"}},{"$f":"#REF!","v":{"$error":"#REF!"}},{"$f":"#REF!","v":{"$error":"#REF!"}},{"$f":"#REF!","v":{"$error":"#REF!"}},{"$f":"#REF!","v":{"$error":"#REF!"}},{"$f":"#REF!","v":{"$error":"#REF!"}},{"$f":"#REF!","v":{"$error":"#REF!"}}]